[Event "CZE-ch Youth G10-G12-G14 2022"]
[Site "Luhacovice"]
[Date "2022.03.14"]
[Round "4.37"]
[White "Dominikova, Denisa"]
[Black "Kavanova, Anezka"]
[Result "1/2-1/2"]
[ECO "B72"]
[WhiteElo "1254"]
[BlackElo "1089"]
[Annotator "NA"]
[PlyCount "79"]
[EventDate "2022.03.12"]
[EventType "swiss"]
[EventCountry "CZE"]
[SourceTitle "playchess.com"]
[Source "ChessBase"]
[SourceQuality "1"]
[TimeControl "40/5400+30:1800+30"]

1. e4 {[%emt 0:00:06]} c5 {[%emt 0:00:03]} 2. Nf3 {[%emt 0:00:29]} d6 {[%emt 0:00:06]} 3. d4 {[%emt 0:00:41]} cxd4 {[%emt 0:00:06]} 4. Nxd4 {[%emt 0:00:40]} Nf6 {[%emt 0:00:07]} 5. Nc3 {[%emt 0:00:57]} g6 {[%emt 0:00:07]} 6. Bc4 {[%emt 0:01:29]} Bg7 {[%emt 0:00:12]} 7. O-O {[%emt 0:03:09]} O-O {[%emt 0:00:12]} 8. h3 {[%emt 0:01:53]} Nc6 {[%emt 0:00:27]} 9. Be3 {[%emt 0:01:41]} Bd7 {[%emt 0:02:14]} 10. Qd2 {[%emt 0:04:00]} Ne5 {[%emt 0:00:39]} 11. Bb3 {[%emt 0:01:47]} Rc8 {[%emt 0:00:24]} 12. f4 {[%emt 0:04:26]} Nc4 {[%emt 0:01:02]} 13. Bxc4 {[%emt 0:04:19]} Rxc4 {[%emt 0:00:10]} 14. b3 {[%emt 0:06:33]} Rc8 {[%emt 0:01:13]} 15. Qd3 {[%emt 0:09:27]} e5 {[%emt 0:09:18]} 16. fxe5 {[%emt 0:05:53]} dxe5 {[%emt 0:01:11]} 17. Ndb5 {[%emt 0:02:44]} Bxb5 {[%emt 0:06:07]} 18. Nxb5 {[%emt 0:01:24]} Qxd3 {[%emt 0:19:23]} 19. cxd3 {[%emt 0:00:37]} a6 {[%emt 0:00:25]} 20. Nd6 {[%emt 0:02:27]} Rc3 {[%emt 0:01:32]} 21. Bg5 {[%emt 0:02:56]} Nh5 {[%emt 0:08:59]} 22. Nxb7 {[%emt 0:04:39]} f6 {[%emt 0:01:58]} 23. Bc1 {[%emt 0:04:04]} Rb8 {[%emt 0:04:09]} 24. Nd6 {[%emt 0:04:12]} Rxd3 {[%emt 0:01:25]} 25. Nc4 {[%emt 0:01:27]} Ng3 {[%emt 0:02:33]} 26. Rf3 {[%emt 0:05:54]} Rd1+ {[%emt 0:01:04]} 27. Kf2 {[%emt 0:01:12]} Nxe4+ {[%emt 0:02:57]} 28. Ke2 {[%emt 0:01:45]} Rdd8 {[%emt 0:02:32]} 29. Be3 {[%emt 0:04:34]} Nc3+ {[%emt 0:04:07]} 30. Ke1 {[%emt 0:00:36]} Nd5 {[%emt 0:06:11]} 31. Bd2 {[%emt 0:02:07]} f5 {[%emt 0:02:19]} 32. Rc1 {[%emt 0:01:58]} e4 {[%emt 0:02:24]} 33. Rf2 {[%emt 0:01:22]} Re8 {[%emt 0:01:52]} 34. Ne3 {[%emt 0:01:54]} Rbd8 {[%emt 0:04:45]} 35. Rc6 {[%emt 0:02:50]} Nxe3 {[%emt 0:01:12]} 36. Bxe3 {[%emt 0:00:16]} a5 {[%emt 0:01:10]} 37. g4 {[%emt 0:03:07]} fxg4 {[%emt 0:02:44]} 38. hxg4 {[%emt 0:00:21]} Be5 {[%emt 0:01:57]} 39. Rfc2 {[%emt 0:03:54]} Ra8 {[%emt 0:02:07]} 40. R2c4 {[%emt 0:02:25]} 1/2-1/2

[Event "CZE-ch Youth G10-G12-G14 2022"]
[Site "Luhacovice"]
[Date "2022.03.14"]
[Round "4.38"]
[White "Filipova, Vanesa"]
[Black "Dorazilova, Kristyna"]
[Result "1-0"]
[ECO "A45"]
[WhiteElo "1146"]
[BlackElo "1240"]
[Annotator "NA"]
[PlyCount "119"]
[EventDate "2022.03.12"]
[EventType "swiss"]
[EventCountry "CZE"]
[SourceTitle "playchess.com"]
[Source "ChessBase"]
[SourceQuality "1"]
[TimeControl "40/5400+30:1800+30"]

1. d4 {[%emt 0:00:09]} Nf6 {[%emt 0:00:05]} 2. Nc3 {[%emt 0:00:22]} e6 {[%emt 0:00:30]} 3. Bg5 {[%emt 0:01:02]} Be7 {[%emt 0:00:41]} 4. Nf3 {[%emt 0:00:32]} h6 {[%emt 0:00:34]} 5. Bh4 {[%emt 0:00:37]} b6 {[%emt 0:00:10]} 6. e3 {[%emt 0:01:00]} Bb7 {[%emt 0:00:12]} 7. Bd3 {[%emt 0:04:01]} O-O {[%emt 0:00:14]} 8. O-O {[%emt 0:00:20]} d5 {[%emt 0:00:32]} 9. Re1 {[%emt 0:07:17]} Nbd7 {[%emt 0:00:44]} 10. Qd2 {[%emt 0:04:04]} c5 {[%emt 0:00:35]} 11. b3 {[%emt 0:02:52]} Rc8 {[%emt 0:00:40]} 12. Qe2 {[%emt 0:03:59]} cxd4 {[%emt 0:02:27]} 13. Nb5 {[%emt 0:00:35]} dxe3 {[%emt 0:00:27]} 14. Qxe3 {[%emt 0:01:09]} a6 {[%emt 0:01:07]} 15. Nbd4 {[%emt 0:01:26]} Qc7 {[%emt 0:03:11]} 16. Bg3 {[%emt 0:01:48]} Bd6 {[%emt 0:03:05]} 17. Nxe6 {[%emt 0:10:40]} Bc5 {[%emt 0:08:21]} 18. Nxc7 {[%emt 0:01:32]} Bxe3 {[%emt 0:00:11]} 19. Rxe3 {[%emt 0:00:10]} Nc5 {[%emt 0:00:40]} 20. Bf5 {[%emt 0:02:18]} Ncd7 {[%emt 0:01:49]} 21. Bd6 {[%emt 0:04:05]} g6 {[%emt 0:04:00]} 22. Bxd7 {[%emt 0:00:44]} Nxd7 {[%emt 0:00:13]} 23. Bxf8 {[%emt 0:00:30]} Kxf8 {[%emt 0:00:25]} 24. Rc3 {[%emt 0:01:11]} Nf6 {[%emt 0:01:08]} 25. Nxd5 {[%emt 0:06:16]} Nxd5 {[%emt 0:00:30]} 26. Rxc8+ {[%emt 0:00:13]} Bxc8 {[%emt 0:00:05]} 27. Rd1 {[%emt 0:00:27]} Be6 {[%emt 0:02:16]} 28. c4 {[%emt 0:00:37]} Nc7 {[%emt 0:02:17]} 29. Rd6 {[%emt 0:00:28]} b5 {[%emt 0:01:21]} 30. c5 {[%emt 0:00:36]} Ke7 {[%emt 0:01:10]} 31. Rd2 {[%emt 0:00:32]} b4 {[%emt 0:01:48]} 32. Ne5 {[%emt 0:00:58]} Bd5 {[%emt 0:01:20]} 33. h3 {[%emt 0:01:02]} a5 {[%emt 0:01:59]} 34. c6 {[%emt 0:00:28]} h5 {[%emt 0:01:17]} 35. g4 {[%emt 0:02:37]} hxg4 {[%emt 0:00:45]} 36. hxg4 {[%emt 0:00:19]} g5 {[%emt 0:01:05]} 37. Kf1 {[%emt 0:00:57]} Ke6 {[%emt 0:00:35]} 38. Re2 {[%emt 0:01:05]} Kd6 {[%emt 0:00:47]} 39. Ke1 {[%emt 0:01:32]} f6 {[%emt 0:00:51]} 40. Nd7 {[%emt 0:01:57]} Bxc6 {[%emt 0:00:37]} 41. Nxf6 {[%emt 0:30:16]} Ne6 {[%emt 0:31:12]} 42. Ne4+ {[%emt 0:02:06]} Kd5 {[%emt 0:03:47]} 43. f3 {[%emt 0:00:39]} Bb7 {[%emt 0:02:05]} 44. Nd2 {[%emt 0:02:23]} Nf4 {[%emt 0:04:18]} 45. Re7 {[%emt 0:01:16]} Nd3+ {[%emt 0:01:08]} 46. Kf1 {[%emt 0:01:24]} Ba6 {[%emt 0:00:37]} 47. Ra7 {[%emt 0:01:21]} Nc5+ {[%emt 0:00:36]} 48. Kg2 {[%emt 0:01:06]} Ke5 {[%emt 0:06:17]} 49. Ne4 {[%emt 0:01:20]} Nxe4 {[%emt 0:01:23]} 50. fxe4 {[%emt 0:00:47]} Bd3 {[%emt 0:01:07]} 51. Rxa5+ {[%emt 0:01:14]} Kxe4 {[%emt 0:00:31]} 52. Rxg5 {[%emt 0:00:13]} Bb1 {[%emt 0:00:56]} 53. Ra5 {[%emt 0:00:14]} Kd4 {[%emt 0:01:11]} 54. a4 {[%emt 0:01:58]} bxa3 {[%emt 0:01:55]} 55. Rxa3 {[%emt 0:00:14]} Kc3 {[%emt 0:00:29]} 56. g5 {[%emt 0:00:09]} Kb4 {[%emt 0:01:36]} 57. Ra6 {[%emt 0:00:41]} Bc2 {[%emt 0:01:49]} 58. g6 {[%emt 0:00:22]} Kb5 {[%emt 0:00:55]} 59. Rf6 {[%emt 0:00:21]} Bxb3 {[%emt 0:03:02]} 60. g7 {[%emt 0:00:10]} 1-0

[Event "CZE-ch Youth G10-G12-G14 2022"]
[Site "Luhacovice"]
[Date "2022.03.14"]
[Round "4.39"]
[White "Myskova, Veronika"]
[Black "Cinkova, Vicky"]
[Result "0-1"]
[ECO "A80"]
[WhiteElo "1117"]
[BlackElo "1317"]
[Annotator "NA"]
[PlyCount "92"]
[EventDate "2022.03.12"]
[EventType "swiss"]
[EventCountry "CZE"]
[SourceTitle "playchess.com"]
[Source "ChessBase"]
[SourceQuality "1"]
[TimeControl "40/5400+30:1800+30"]

1. d4 {[%emt 0:00:17]} d5 {[%emt 0:01:05]} 2. Bf4 {[%emt 0:00:28]} e6 {[%emt 0:00:11]} 3. Nf3 {[%emt 0:00:23]} f5 {[%emt 0:00:15]} 4. e3 {[%emt 0:00:47]} c6 {[%emt 0:01:00]} 5. Bd3 {[%emt 0:00:54]} Bd6 {[%emt 0:00:39]} 6. Ne5 {[%emt 0:00:41]} Nf6 {[%emt 0:00:34]} 7. h3 {[%emt 0:00:35]} Qe7 {[%emt 0:11:45]} 8. Nd2 {[%emt 0:02:56]} Nbd7 {[%emt 0:02:06]} 9. c3 {[%emt 0:02:12]} O-O {[%emt 0:03:49]} 10. g4 {[%emt 0:03:18]} Ne4 {[%emt 0:02:14]} 11. Qe2 {[%emt 0:03:13]} c5 {[%emt 0:12:02]} 12. O-O-O {[%emt 0:03:28]} c4 {[%emt 0:19:37]} 13. Bc2 {[%emt 0:02:47]} Ndf6 {[%emt 0:10:14]} 14. f3 {[%emt 0:04:20]} Nxd2 {[%emt 0:03:16]} 15. Qxd2 {[%emt 0:01:11]} b5 {[%emt 0:01:14]} 16. h4 {[%emt 0:06:48]} Qb7 {[%emt 0:05:32]} 17. Ng6 {[%emt 0:07:46]} Bxf4 {[%emt 0:01:34]} 18. Nxf4 {[%emt 0:02:59]} Rb8 {[%emt 0:03:40]} 19. a3 {[%emt 0:03:06]} a5 {[%emt 0:00:20]} 20. b4 {[%emt 0:00:11]} cxb3 {[%emt 0:00:07]} 21. Bxb3 {[%emt 0:00:23]} b4 {[%emt 0:00:45]} 22. axb4 {[%emt 0:01:44]} axb4 {[%emt 0:00:11]} 23. cxb4 {[%emt 0:00:17]} Bd7 {[%emt 0:00:48]} 24. Bc2 {[%emt 0:02:27]} Rfc8 {[%emt 0:00:26]} 25. Kb2 {[%emt 0:05:40]} fxg4 {[%emt 0:07:22]} 26. fxg4 {[%emt 0:04:49]} Ne4 {[%emt 0:01:18]} 27. Bxe4 {[%emt 0:03:35]} Qxb4+ {[%emt 0:02:33]} 28. Qxb4 {[%emt 0:00:45]} Rxb4+ {[%emt 0:00:05]} 29. Ka3 {[%emt 0:00:17]} Ra4+ {[%emt 0:00:06]} 30. Kb3 {[%emt 0:00:23]} Ra6 {[%emt 0:02:46]} 31. Nxd5 {[%emt 0:02:46]} Ba4+ {[%emt 0:02:44]} 32. Kb2 {[%emt 0:00:39]} Rb8+ {[%emt 0:00:10]} 33. Kc1 {[%emt 0:02:17]} Bxd1 {[%emt 0:00:31]} 34. Rxd1 {[%emt 0:01:23]} exd5 {[%emt 0:00:25]} 35. Bxd5+ {[%emt 0:00:16]} Kf8 {[%emt 0:00:08]} 36. Rf1+ {[%emt 0:01:05]} Rf6 {[%emt 0:01:19]} 37. Rg1 {[%emt 0:00:52]} Rf2 {[%emt 0:00:29]} 38. Rg3 {[%emt 0:01:45]} Ke7 {[%emt 0:01:13]} 39. g5 {[%emt 0:02:32]} Rbb2 {[%emt 0:00:22]} 40. Be4 {[%emt 0:01:17]} g6 {[%emt 0:01:42]} 41. h5 {[%emt 0:32:31]} Rbe2 {[%emt 0:30:10]} 42. Kd1 {[%emt 0:01:20]} Ra2 {[%emt 0:00:08]} 43. Ke1 {[%emt 0:02:09]} Rh2 {[%emt 0:00:18]} 44. Bg2 {[%emt 0:01:11]} Rhxg2 {[%emt 0:00:18]} 45. Rxg2 {[%emt 0:00:06]} Rxg2 {[%emt 0:00:05]} 46. hxg6 {[%emt 0:00:13]} Rxg5 {[%emt 0:00:15]} 0-1

[Event "CZE-ch Youth G10-G12-G14 2022"]
[Site "Luhacovice"]
[Date "2022.03.14"]
[Round "4.40"]
[White "Lackova, Ludmila"]
[Black "Lipovska Viktorie"]
[Result "1-0"]
[ECO "D08"]
[WhiteElo "1167"]
[BlackElo "1189"]
[Annotator "NA"]
[PlyCount "113"]
[EventDate "2022.03.12"]
[EventType "swiss"]
[EventCountry "CZE"]
[SourceTitle "playchess.com"]
[Source "ChessBase"]
[SourceQuality "1"]
[TimeControl "40/5400+30:1800+30"]

1. d4 {[%emt 0:00:04]} d5 {[%emt 0:00:11]} 2. c4 {[%emt 0:00:06]} Nc6 {[%emt 0:00:54]} 3. cxd5 {[%emt 0:01:13]} Qxd5 {[%emt 0:00:18]} 4. Nf3 {[%emt 0:00:09]} e5 {[%emt 0:00:37]} 5. dxe5 {[%emt 0:01:44]} Qxd1+ {[%emt 0:00:42]} 6. Kxd1 {[%emt 0:00:08]} Bg4 {[%emt 0:00:15]} 7. Bf4 {[%emt 0:00:36]} O-O-O+ {[%emt 0:00:53]} 8. Nbd2 {[%emt 0:06:17]} Bxf3 {[%emt 0:00:36]} 9. exf3 {[%emt 0:01:01]} Bb4 {[%emt 0:00:22]} 10. Kc2 {[%emt 0:05:37]} Bxd2 {[%emt 0:01:02]} 11. Bxd2 {[%emt 0:00:15]} Nxe5 {[%emt 0:00:49]} 12. Bc3 {[%emt 0:00:41]} f6 {[%emt 0:00:22]} 13. Rd1 {[%emt 0:01:39]} Rxd1 {[%emt 0:00:15]} 14. Kxd1 {[%emt 0:00:04]} Ne7 {[%emt 0:00:17]} 15. Kc2 {[%emt 0:01:07]} Rd8 {[%emt 0:01:04]} 16. b3 {[%emt 0:02:57]} Nd5 {[%emt 0:00:26]} 17. Bb2 {[%emt 0:02:13]} Nb4+ {[%emt 0:01:11]} 18. Kc3 {[%emt 0:02:43]} Nxa2+ {[%emt 0:00:15]} 19. Kc2 {[%emt 0:01:12]} c5 {[%emt 0:00:44]} 20. Ba3 {[%emt 0:03:25]} Nb4+ {[%emt 0:00:32]} 21. Bxb4 {[%emt 0:01:25]} cxb4 {[%emt 0:00:26]} 22. Be2 {[%emt 0:00:52]} a5 {[%emt 0:00:36]} 23. Ra1 {[%emt 0:02:42]} Nc6 {[%emt 0:00:35]} 24. Bd1 {[%emt 0:07:42]} b6 {[%emt 0:01:01]} 25. h3 {[%emt 0:05:15]} g5 {[%emt 0:00:21]} 26. g3 {[%emt 0:00:41]} Nd4+ {[%emt 0:01:29]} 27. Kc1 {[%emt 0:01:18]} Kb7 {[%emt 0:00:22]} 28. Kb2 {[%emt 0:01:29]} Nb5 {[%emt 0:01:10]} 29. Kc2 {[%emt 0:01:35]} Na3+ {[%emt 0:00:29]} 30. Kc1 {[%emt 0:00:37]} Re8 {[%emt 0:01:33]} 31. Kd2 {[%emt 0:00:37]} h5 {[%emt 0:01:05]} 32. f4 {[%emt 0:01:16]} gxf4 {[%emt 0:00:34]} 33. Bxh5 {[%emt 0:01:22]} Rh8 {[%emt 0:00:37]} 34. Bg4 {[%emt 0:00:18]} fxg3 {[%emt 0:00:19]} 35. fxg3 {[%emt 0:00:06]} Nb5 {[%emt 0:00:33]} 36. Kd3 {[%emt 0:01:16]} Rd8+ {[%emt 0:00:33]} 37. Kc2 {[%emt 0:01:14]} Na3+ {[%emt 0:00:54]} 38. Kc1 {[%emt 0:02:41]} Rd3 {[%emt 0:00:27]} 39. Kb2 {[%emt 0:00:59]} Rxg3 {[%emt 0:00:46]} 40. Rh1 {[%emt 0:02:19]} Rg2+ {[%emt 0:01:19]} 41. Ka1 {[%emt 0:30:53]} Nc2+ {[%emt 0:30:41]} 42. Kb1 {[%emt 0:00:10]} Na3+ {[%emt 0:01:10]} 43. Ka1 {[%emt 0:00:07]} Rg3 {[%emt 0:00:16]} 44. Bd1 {[%emt 0:00:20]} f5 {[%emt 0:01:02]} 45. h4 {[%emt 0:00:22]} Rg8 {[%emt 0:00:25]} 46. h5 {[%emt 0:00:12]} b5 {[%emt 0:00:52]} 47. Rf1 {[%emt 0:00:35]} Rf8 {[%emt 0:00:43]} 48. Kb2 {[%emt 0:01:23]} Kc7 {[%emt 0:01:13]} 49. Bg4 {[%emt 0:01:53]} f4 {[%emt 0:01:32]} 50. h6 {[%emt 0:00:44]} a4 {[%emt 0:00:29]} 51. h7 {[%emt 0:00:25]} axb3 {[%emt 0:00:42]} 52. Kxb3 {[%emt 0:00:14]} Nc4 {[%emt 0:01:11]} 53. Be6 {[%emt 0:02:01]} Nd2+ {[%emt 0:00:13]} 54. Kxb4 {[%emt 0:00:37]} Nxf1 {[%emt 0:00:15]} 55. Bg8 {[%emt 0:00:13]} Ne3 {[%emt 0:02:19]} 56. h8=Q {[%emt 0:00:32]} f3 {[%emt 0:01:04]} 57. Qg7+ {[%emt 0:00:27]} 1-0

[Event "CZE-ch Youth G10-G12-G14 2022"]
[Site "Luhacovice"]
[Date "2022.03.14"]
[Round "4.41"]
[White "Foldynova Julie"]
[Black "Dufkova, Tereza"]
[Result "1-0"]
[ECO "D00"]
[WhiteElo "1000"]
[BlackElo "1014"]
[Annotator "NA"]
[PlyCount "67"]
[EventDate "2022.03.12"]
[EventType "swiss"]
[EventCountry "CZE"]
[SourceTitle "playchess.com"]
[Source "ChessBase"]
[SourceQuality "1"]
[TimeControl "40/5400+30:1800+30"]

1. d4 {[%emt 0:00:08]} d5 {[%emt 0:00:06]} 2. Nc3 {[%emt 0:00:04]} Nf6 {[%emt 0:00:05]} 3. Bg5 {[%emt 0:00:08]} Nc6 {[%emt 0:00:56]} 4. Nf3 {[%emt 0:00:52]} Bf5 {[%emt 0:00:13]} 5. Nh4 {[%emt 0:01:17]} e6 {[%emt 0:01:01]} 6. Nxf5 {[%emt 0:00:33]} exf5 {[%emt 0:00:08]} 7. e3 {[%emt 0:00:28]} h6 {[%emt 0:00:37]} 8. Bh4 {[%emt 0:00:37]} Bb4 {[%emt 0:03:02]} 9. Qf3 {[%emt 0:04:25]} Qd7 {[%emt 0:02:29]} 10. Bd3 {[%emt 0:02:48]} g6 {[%emt 0:00:54]} 11. Bxf6 {[%emt 0:00:53]} Rg8 {[%emt 0:02:49]} 12. a3 {[%emt 0:03:03]} Bd6 {[%emt 0:02:04]} 13. Nxd5 {[%emt 0:02:06]} Ne7 {[%emt 0:15:08]} 14. Nxe7 {[%emt 0:02:41]} Bxe7 {[%emt 0:00:13]} 15. Bxe7 {[%emt 0:00:05]} Qxe7 {[%emt 0:00:08]} 16. Qxb7 {[%emt 0:00:12]} Qd8 {[%emt 0:02:03]} 17. Qb4 {[%emt 0:01:47]} Qc8 {[%emt 0:02:38]} 18. e4 {[%emt 0:02:35]} Rb8 {[%emt 0:09:01]} 19. Qa4+ {[%emt 0:01:40]} c6 {[%emt 0:00:28]} 20. O-O-O {[%emt 0:00:44]} Qb7 {[%emt 0:02:34]} 21. b3 {[%emt 0:01:05]} Qc7 {[%emt 0:06:28]} 22. g3 {[%emt 0:01:53]} Kf8 {[%emt 0:00:23]} 23. b4 {[%emt 0:01:41]} f4 {[%emt 0:06:53]} 24. e5 {[%emt 0:02:01]} fxg3 {[%emt 0:01:09]} 25. fxg3 {[%emt 0:00:15]} Rg7 {[%emt 0:01:49]} 26. h3 {[%emt 0:01:35]} Qd7 {[%emt 0:00:55]} 27. Be4 {[%emt 0:00:44]} Rb6 {[%emt 0:02:00]} 28. d5 {[%emt 0:01:34]} f5 {[%emt 0:01:17]} 29. dxc6 {[%emt 0:00:59]} Qe7 {[%emt 0:00:45]} 30. Bd5 {[%emt 0:04:36]} Qxe5 {[%emt 0:01:36]} 31. g4 {[%emt 0:02:47]} Qf4+ {[%emt 0:03:23]} 32. Kb2 {[%emt 0:01:34]} Qe5+ {[%emt 0:00:48]} 33. Ka2 {[%emt 0:01:11]} fxg4 {[%emt 0:01:14]} 34. Rhf1+ {[%emt 0:01:30]} 1-0

[Event "CZE-ch Youth G10-G12-G14 2022"]
[Site "Luhacovice"]
[Date "2022.03.14"]
[Round "4.42"]
[White "Zilava Lucie"]
[Black "Urvalkova Ema"]
[Result "1/2-1/2"]
[ECO "C45"]
[WhiteElo "1059"]
[BlackElo "1000"]
[Annotator "NA"]
[PlyCount "86"]
[EventDate "2022.03.12"]
[EventType "swiss"]
[EventCountry "CZE"]
[SourceTitle "playchess.com"]
[Source "ChessBase"]
[SourceQuality "1"]
[TimeControl "40/5400+30:1800+30"]

1. e4 {[%emt 0:00:28]} e5 {[%emt 0:00:09]} 2. Nf3 {[%emt 0:00:03]} Nc6 {[%emt 0:00:04]} 3. d4 {[%emt 0:00:11]} exd4 {[%emt 0:00:11]} 4. Nxd4 {[%emt 0:00:08]} Bc5 {[%emt 0:00:10]} 5. Be3 {[%emt 0:00:07]} Qf6 {[%emt 0:00:09]} 6. c3 {[%emt 0:00:11]} Nge7 {[%emt 0:00:10]} 7. Bc4 {[%emt 0:00:30]} Ne5 {[%emt 0:00:42]} 8. Bb3 {[%emt 0:00:38]} c6 {[%emt 0:01:12]} 9. Nd2 {[%emt 0:03:06]} d5 {[%emt 0:01:52]} 10. Qc2 {[%emt 0:00:42]} O-O {[%emt 0:00:51]} 11. O-O-O {[%emt 0:00:07]} Bd7 {[%emt 0:01:36]} 12. f4 {[%emt 0:00:51]} Ng4 {[%emt 0:02:28]} 13. e5 {[%emt 0:02:31]} Qg6 {[%emt 0:02:01]} 14. Qxg6 {[%emt 0:00:54]} Nxg6 {[%emt 0:00:14]} 15. Rde1 {[%emt 0:00:45]} Nxe3 {[%emt 0:02:24]} 16. Rxe3 {[%emt 0:00:27]} Nxf4 {[%emt 0:01:03]} 17. g3 {[%emt 0:01:07]} Ne6 {[%emt 0:01:31]} 18. N2f3 {[%emt 0:01:25]} Nxd4 {[%emt 0:02:12]} 19. cxd4 {[%emt 0:00:32]} Bb4 {[%emt 0:01:09]} 20. h4 {[%emt 0:00:14]} Rae8 {[%emt 0:00:53]} 21. h5 {[%emt 0:00:56]} h6 {[%emt 0:00:46]} 22. Rg1 {[%emt 0:00:40]} Bg4 {[%emt 0:00:36]} 23. Nh2 {[%emt 0:00:48]} Bxh5 {[%emt 0:00:32]} 24. g4 {[%emt 0:00:34]} Bg6 {[%emt 0:01:35]} 25. Bc2 {[%emt 0:02:58]} Bxc2 {[%emt 0:00:41]} 26. Kxc2 {[%emt 0:00:04]} f6 {[%emt 0:00:44]} 27. e6 {[%emt 0:02:57]} c5 {[%emt 0:01:44]} 28. a3 {[%emt 0:01:37]} cxd4 {[%emt 0:00:49]} 29. Re2 {[%emt 0:00:14]} Rc8+ {[%emt 0:01:01]} 30. Kd3 {[%emt 0:00:51]} Bc5 {[%emt 0:00:56]} 31. Nf3 {[%emt 0:01:52]} Rc6 {[%emt 0:01:35]} 32. Nxd4 {[%emt 0:01:47]} Bxd4 {[%emt 0:00:14]} 33. Kxd4 {[%emt 0:00:08]} Rd6 {[%emt 0:03:59]} 34. Rc1 {[%emt 0:01:16]} Re8 {[%emt 0:00:33]} 35. Rce1 {[%emt 0:01:04]} b6 {[%emt 0:02:15]} 36. b4 {[%emt 0:00:46]} a5 {[%emt 0:01:20]} 37. bxa5 {[%emt 0:00:18]} bxa5 {[%emt 0:00:16]} 38. Kc5 {[%emt 0:00:08]} Rdd8 {[%emt 0:00:53]} 39. Kc6 {[%emt 0:01:56]} Re7 {[%emt 0:01:01]} 40. Kc5 {[%emt 0:00:58]} Rc7+ {[%emt 0:02:05]} 41. Kb6 {[%emt 0:31:34]} Re7 {[%emt 0:31:04]} 42. Kc5 {[%emt 0:00:48]} Kf8 {[%emt 0:03:54]} 43. Rb2 {[%emt 0:00:51]} Ke8 {[%emt 0:01:40]} 1/2-1/2